Cogmind - Beta 15 @@@ ROGUE MODE // 2025.07.22 @ 04:31:24 Player: LameThyst Result: Destroyed by G-34 Mercenary with Small Laser Performance ------------- Evolutions (1) 500 Regions Visited (2) 400 Robots Destroyed (37) 185 Value Destroyed (863) 863 Prototype IDs (1) 20 Alien Tech Used (0) 0 Bonus (0) 0 TOTAL SCORE: 1968 Bonus ------- None Cogmind --------- Core Integrity 0/400 Matter 300/300 Energy 100/100 System Corruption 0% Temperature Cool (6) Movement Core (300) Ox5 Location -9/Materials Parts ------- > --- POWER (1) -------- (None) > --- PROPULSION (3) --- (None) > --- UTILITY (3) ------ Medium Storage Unit > --- WEAPON (2) ------- Maul Heavy Hammer > --- INVENTORY (10) --- Light Ion Engine Signal Interpreter ECM Suite Improved EM Shotgun Beam Rifle Particle Cannon Assault Rifle Peak State ------------ > --- POWER ------------ Ion Engine > --- PROPULSION ------- Armored Wheel Armored Wheel Armored Wheel > --- UTILITY ---------- Cooling System Medium Storage Unit Medium Armor Plating > --- WEAPON ----------- Assault Rifle Heavy Hammer > --- INVENTORY -------- Light Ion Engine Armored Wheel Sensor Array Signal Interpreter Seismic Detector ECM Suite Improved EM Shotgun Beam Rifle Particle Cannon Assault Rifle [Rating: 16] Favorites ----------- Power Ion Engine Engine Ion Engine Propulsion Improved Hover Unit Leg Aluminum Leg Wheel Armored Wheel Hover Unit Improved Hover Unit Utility Seismic Detector Device Seismic Detector Storage Medium Storage Unit Protection Light Armor Plating Weapon Heavy Hammer Energy Gun Improved EM Shotgun Energy Cannon Particle Cannon Ballistic Gun Assault Rifle Special Weapon Mining Laser Impact Weapon Heavy Hammer Build | -11 -10 -9 ------- Run | Yrd Mat Mat Slots Evolved 2 | . . 2 Power . | . . . Propulsion 1 | . . 1 Utility 1 | . . 1 Weapon . | . . . Parts Attached 37 | 7 14 16 Power 5 | 1 2 2 Engine 5 | 1 2 2 Core . | . . . Reactor . | . . . Propulsion 13 | 2 7 4 Treads . | . . . Leg 5 | 2 3 . Wheel 4 | . . 4 Hover 4 | . 4 . Flight . | . . . Utility 10 | 2 3 5 Device 4 | 1 1 2 Storage 4 | 1 1 2 Processor . | . . . Hackware . | . . . Protection 2 | . 1 1 Artifact . | . . . Weapon 9 | 2 2 5 Energy Gun 1 | . . 1 Energy Cannon 1 | . . 1 Ballistic Gun 3 | 2 . 1 Ballistic Cannon . | . . . Launcher . | . . . Special Weapon 1 | . 1 . Impact Weapon 3 | . 1 2 Slashing Weapon . | . . . Piercing Weapon . | . . . Special Melee Weapon . | . . . Unidentified Prototypes 1 | . . 1 Parts Lost 17 | . 6 11 Power 3 | . 1 2 Propulsion 8 | . 4 4 Utility 4 | . . 4 Weapon 2 | . 1 1 Highest Loss Streak 7 | . 4 7 To Critical Strikes . | . . . Average Backups 8 | 1 7 9 Power 1 | . 1 . Propulsion . | . 1 . Utility 3 | . 3 4 Weapon 2 | 1 2 3 Tool/Special . | . . . Unused Backups 11 | . 5 6 Power 1 | . 1 . Propulsion 2 | . . 2 Utility 3 | . . 3 Weapon 5 | . 4 1 Tool/Special . | . . . Average Slot Usage (%) 94 | . 99 85 Engine 12 | . 13 10 Leg 9 | . 10 7 Wheel 6 | . . 20 Hover 11 | . 16 . Device 11 | . 12 8 Storage 13 | . 14 11 Protection 2 | . 1 5 Ballistic Gun 13 | . 16 7 Impact Weapon 11 | . 11 11 Peak Build Rating 16 | 7 11 16 Average Rating 10 | 5 9 12 On Entrance 5 | . 7 9 Naked Turns . | . . . Heaviest Build 33 | 14 23 33 Greatest Support 36 | 20 20 36 Greatest Overweight (x) 4 | . 4 1 Average Overweight (x) . | . . . Largest Inventory Capacity 10 | 8 10 10 Average Capacity 8 | 7 8 10 Most Carried 10 | 3 10 10 Average Carried 8 | 1 7 9 Final Capacity 10 | 8 10 10 Final Carried 10 | 3 10 7 Class Distribution -------------------- 100% | Mutant Dominant Class ---------------- Mutant | -10/Materials Mutant | -9/Materials Resources | -11 -10 -9 ----------- Run | Yrd Mat Mat Matter Collected 781 | 290 253 238 Remotely . | . . . Salvage Created 1154 | 110 522 522 Parts 45 | 7 25 13 Haulers Intercepted 4 | . 2 2 Recyclers Shooed 1 | . . 1 Parts Field Recycled . | . . . Retrieved Matter . | . . . Parts Self-Destructed . | . . . Prevented . | . . . Kills | -11 -10 -9 ------- Run | Yrd Mat Mat Combat Hostiles Destroyed 25 | . 13 12 Melee 5 | . 2 3 Guns 7 | . 5 2 AOE 2 | . 2 . Classes Destroyed 11 | 2 6 3 Worker 1 | . . 1 Builder 1 | . 1 . Tunneler 2 | 1 . 1 Hauler 4 | . 2 2 Recycler 1 | 1 . . Operator 1 | . 1 . Watcher 2 | . 1 1 Swarmer 7 | . 3 4 Grunt 14 | . 10 4 Duelist 1 | . . 1 Sentry 3 | . . 3 Best Kill Streak 6 | 2 5 6 Combat Bots Only 8 | . 5 8 Max Kills in Single Turn 2 | 1 2 1 Gunslinging . | . . . Exploded 2 | . 2 . Melee 1 | . 1 1 Uniques/NPCs Destroyed . | . . . Combat | -11 -10 -9 -------- Run | Yrd Mat Mat Hostile Shots Fired 256 | . 62 194 Missed 71 | . 17 54 Hits 185 | . 45 140 Melee 2 | . . 2 Projectile 183 | . 45 138 Critical Strikes 3 | . . 3 Damage Taken 2175 | . 603 1572 Core 556 | . 151 405 Absorbed by Shields . | . . . Regen/Repaired (Parts) 25 | . . 25 Core Remaining (%) 69 | 100 39 . Volleys Fired 33 | 5 22 6 Largest 2 | 2 2 1 Hottest 100 | 40 100 20 Shots Fired 48 | 10 32 6 Gun 47 | 10 31 6 Cannon . | . . . Launcher . | . . . Special 1 | . 1 . Kinetic 47 | 10 31 6 Thermal 1 | . 1 . Explosive . | . . . Electromagnetic . | . . . Robot Hit Streak 5 | 5 4 5 Robot Miss Streak 5 | 1 5 1 Penetration Max . | . . . Secondary Targets 1 | . 1 . Max Gunslinging Chain 1 | . 1 . Shots Hit Robots 81 | 7 35 39 Core Hits 21 | 3 11 7 Critical Kills 2 | . . 2 Critical Parts Destroyed 8 | . 3 5 Critical Strikes 10 | . 3 7 Smash 10 | . 3 7 Melee Attacks 92 | . 43 49 Impact 92 | . 43 49 Slashing . | . . . Piercing . | . . . Sneak Attacks 8 | . 4 4 Combat Hostiles . | . . . Follow-up Attacks 1 | . . 1 Damage Inflicted 2651 | 73 1206 1372 Guns 295 | 73 156 66 Cannons . | . . . Explosions 194 | . 194 . Melee 2162 | . 856 1306 Ramming . | . . . Kinetic 295 | 73 156 66 Thermal 194 | . 194 . Explosive . | . . . Electromagnetic . | . . . Impact 2162 | . 856 1306 Slashing . | . . . Piercing . | . . . Highest Corruption . | . . . Average Corruption . | . . . Corruption Purged . | . . . Corruption Blocked . | . . . Overload Shots . | . . . Overflow Damage 785 | . 392 393 Projectiles . | . . . Explosions 87 | . 87 . Melee 698 | . 305 393 Knockbacks 8 | . 4 4 Impact 8 | . 4 4 Kinetic . | . . . Secondary . | . . . Self-Inflicted Damage 100 | . 100 . Shots 1 | . 1 . Rammed . | . . . Targets Rammed . | . . . Kicked . | . . . Crushed . | . . . Highest Temperature 28 | . 28 15 Average Temperature 6 | . 5 10 Received Heat Transfer 645 | . 213 432 Siege Activations . | . . . Martial Activations . | . . . Shielding Activations . | . . . Robots Disrupted . | . . . Combat Hostiles . | . . . Robots Corrupted 16 | . 7 9 Combat Hostiles 11 | . 4 7 Parts Fried 20 | . 7 13 Impact Corruptions 31 | . 14 17 Robots Melted . | . . . Combat Hostiles . | . . . Parts Melted 2 | . . 2 Heat Transferred 100 | . 100 . Parts Sabotaged . | . . . Parts Stolen . | . . . Parts Stripped . | . . . Power Chain Reactions . | . . . Alert | -11 -10 -9 ------- Run | Yrd Mat Mat Maximum Alert Level . | . . . Low Security (%) 100 | 100 100 100 Level 1 . | . . . Level 2 . | . . . Level 3 . | . . . Level 4 . | . . . Level 5 . | . . . High Security . | . . . Max Security . | . . . Peak Influence 127 | 10 127 127 Initial 37 | . . 37 Average 34 | . 37 30 Influence Increases 970 | 10 521 439 Destroy 0b10 Robot/C 500 | . 260 240 Destroy 0b10 Robot/NC 60 | 10 25 25 Destroy Leader 132 | . 66 66 Successful Hack 43 | . 25 18 Select Force Hacks 60 | . 60 . Disable Machine 60 | . 45 15 Destroy Structure 40 | . 40 . Lose Combat Pursuer 75 | . . 75 Influence Decreases 953 | 10 432 511 Entered New Map 52 | . . 52 Time Decay 527 | 10 268 249 Lost Part 156 | . 60 96 Purge Threat 218 | . 104 114 Squads Dispatched 6 | . 4 2 Investigation 3 | . 2 1 Extermination . | . . . Reinforcement 3 | . 2 1 Assault . | . . . Garrison . | . . . Intercept . | . . . Searches Triggered . | . . . Construction Impeded . | . . . Haulers Reinforced . | . . . Active Scanning Responses . | . . . Cargo Convoy Interrupts . | . . . Stealth | -11 -10 -9 --------- Run | Yrd Mat Mat Distress Signals 2 | . . 2 Communications Jammed . | . . . Distress Signals . | . . . Times Spotted 51 | . 22 29 Peak Tracking Total 8 | . 6 8 Tactical Retreats 4 | . . 4 Traps | -11 -10 -9 ------- Run | Yrd Mat Mat Traps Triggered 1 | . 1 . Indirectly . | . . . Trap Hack Attempts . | . . . Triggered . | . . . Disarmed . | . . . Reprogrammed . | . . . Reused . | . . . Traps Extracted . | . . . Installed . | . . . Triggered . | . . . Machines | -11 -10 -9 ---------- Run | Yrd Mat Mat Machines Disabled 4 | . 3 1 Max in Single Turn 2 | . 2 1 Machines Repaired . | . . . Machines Dismantled . | . . . Machines Sabotaged . | . . . Overloaded Fab Kills . | . . . Hacking | -11 -10 -9 --------- Run | Yrd Mat Mat Machines Accessed 13 | . 7 6 Terminals 10 | . 5 5 Fabricators . | . . . Repair Stations 1 | . . 1 Recycling Units 2 | . 2 . Scanalyzers . | . . . Garrison Access . | . . . Total Hacks 35 | . 18 17 Successful 24 | . 14 10 Failed 11 | . 4 7 Catastrophic 2 | . . 2 Database Lockouts . | . . . Manual 32 | . 17 15 Terminals 30 | . 16 14 Fabricators . | . . . Repair Stations 3 | . . 3 Recycling Units 2 | . 2 . Scanalyzers . | . . . Garrison Access . | . . . Terminal Hacks 4 | . 3 1 Unreport Threat 3 | . 2 1 Locate Traps 1 | . 1 . Fabricator Hacks . | . . . Repair Station Hacks 2 | . . 2 Scan Component 1 | . . 1 Repair 1 | . . 1 Recycling Unit Hacks . | . . . Scanalyzer . | . . . Garrison Access Hacks . | . . . Unauthorized Hacks 18 | . 11 7 Terminals 15 | . 9 6 Botnet 6 | . 4 2 Skim 9 | . 5 4 Fabricators . | . . . Repair Stations 1 | . . 1 Mechanics 1 | . . 1 Recycling Units 2 | . 2 . Tunnel 2 | . 2 . Scanalyzers . | . . . Garrison Access . | . . . Data Cores Recovered . | . . . Used . | . . . Hacking Detections 10 | . 4 6 Full Trace Events 1 | . . 1 Feedback Events . | . . . Feedback Blocked . | . . . Robot Schematics Acquired . | . . . Robots Built . | . . . Authchips . | . . . Time . | . . . Total Robot Build Rating . | . . . Part Schematics Acquired . | . . . Parts Built . | . . . Authchips . | . . . Time . | . . . Total Part Build Rating . | . . . Parts Repaired 1 | . . 1 Time 26 | . . 26 Parts Recycled . | . . . Recycled Matter . | . . . Retrieved Matter . | . . . Retrieved Components . | . . . Parts Scanalyzed . | . . . Part Schematics Acquired . | . . . Parts Damaged . | . . . Bothacking | -11 -10 -9 ------------ Run | Yrd Mat Mat Used RIF Installer . | . . . Robots Hacked . | . . . Non-combat . | . . . Combat . | . . . Robot Hacks Applied . | . . . Relay Couplers Released . | . . . Fabnet Peak Effective % . | . . . Robots Rewired . | . . . Allies Hacked . | . . . Hacks Repelled . | . . . Allies | -11 -10 -9 -------- Run | Yrd Mat Mat Total Allies . | . . . Largest Group . | . . . Highest-Rated Group . | . . . Highest-Rated Ally . | . . . Total Orders . | . . . Ally Attacks . | . . . Total Damage . | . . . Kills . | . . . Allies Corrupted . | . . . Allies Melted . | . . . Intel | -11 -10 -9 ------- Run | Yrd Mat Mat Active Infowar (turns) 1739 | 22 1508 209 Sensors 208 | . . 208 Seismic 1695 | 22 1508 165 Robot Analysis Total . | . . . Derelict Logs Recovered . | . . . Drone Launches . | . . . Drone Recoveries . | . . . Exploration | -11 -10 -9 ------------- Run | Yrd Mat Mat Turns Passed 2497 | 82 1664 751 Spaces Moved 1786 | 52 1189 545 Core 18 | 10 8 . Treads . | . . . Legs 492 | 42 353 97 Wheels 448 | . . 448 Hover 828 | . 828 . Flight . | . . . Fastest Speed 50 | 50 56 90 Average Speed 112 | 106 119 98 Slowest Speed 250 | 120 250 190 Overloaded Moves . | . . . Propulsion Burnouts . | . . . Robots Hopped . | . . . Potential Cave-ins . | . . . Cave-ins Triggered . | . . . Exploration Rate (%) 52 | 3 98 57 Regions Visited 2 Branch Regions . Pre-discovered Areas 2 | . 2 . Known Exits Taken . | . . . Unknown Exits Taken 2 | 1 1 . Scrap Searched . | . . . Spaces Dug 5 | . 5 . Terrain Destroyed 46 | . 46 . Melee 5 | . 5 . Projectile . | . . . AOE 41 | . 41 . Terrain Rammed . | . . . Walls Destroyed . | . . . Machines Disabled . | . . . Actions | -11 -10 -9 --------- Run | Yrd Mat Mat Total 2063 | 66 1325 672 Wait 53 | . 21 32 Move 1784 | 51 1188 545 Hop . | . . . Pick Up 25 | 3 18 4 Fast Attach 17 | 7 4 6 Attach 12 | . 4 8 Detach 4 | . 2 2 Swap 21 | . 11 10 Drop 23 | . 12 11 Fire 33 | 5 22 6 Melee 91 | . 43 48 Ram . | . . . Kick . | . . . Crush . | . . . Escape Stasis . | . . . Rewire . | . . . Trap . | . . . Miscellaneous . | . . . Route ------- -11/Scrapyard -10/Materials (discovered 6 exits: *Mat x3 / [*Min x2] / [*Sub]) -9/Materials (discovered 2 exits: [*Mat] / *Min) History --------- Turn | Location | Event 9 | -11/Scrapyard | Discovered new exit (range 16) 83 | -11/Scrapyard | Entered Materials 177 | -10/Materials | Discovered new exit (range 15) 266 | -10/Materials | Discovered new exit (range 6) 268 | -10/Materials | Discovered new exit (range 16) 300 | -10/Materials | Build established: Mutant 388 | -10/Materials | Discovered new exit (range 11) 563 | -10/Materials | Discovered new exit (range 9) 581 | -10/Materials | Discovered new exit (range 16) 1001 | -10/Materials | Learned Storage interactive machine intel 1080 | -10/Materials | Learned location of 2 exits from Mines 1114 | -10/Materials | Learned 4 Recycling zone layouts 1117 | -10/Materials | Learned Storage security intel 1124 | -10/Materials | Learned Storage emergency access door positions 1161 | -10/Materials | Learned location of 2 exits from Subcaves 1193 | -10/Materials | Learned 4 Subcaves zone layouts 1205 | -10/Materials | Core integrity fell below 50% 1239 | -10/Materials | Lost 4 parts (1p2n1w) 1747 | -10/Materials | Entered another Materials area 1747 | -9/Materials | Evolved 2 slots: Propulsion x1, Utility x1 1748 | -9/Materials | Identified exit to Mines 1879 | -9/Materials | Repaired Ion Engine 2032 | -9/Materials | Discovered new exit (range 7) 2290 | -9/Materials | Core integrity fell below 50% 2333 | -9/Materials | Destroyed 8 combat bots 2334 | -9/Materials | Lost 7 parts (1p2n3u1w) 2482 | -9/Materials | Core integrity fell below 20% 2498 | -9/Materials | Destroyed by G-34 Mercenary with Small Laser Last Messages --------------- 02412_ Heat Sink fried. 02412_ K-01 Serf collects debris. 02464_ Connecting with Terminal... 02464_ ALERT: Suspicious activity at Terminal M005. Dispatching Investigation squad. 02470_ Lgt. Ion Engine destroyed. 02487_ S-10 Pest destroyed. 02490_ L-31 Rogue knocked back. 02492_ Maul follow-up attack on L-31 Rogue. 02492_ Destroyed Melee Analysis Suite. 02492_ L-31 Rogue system corrupted by crushing effect. 02493_ L-31 Rogue system terminally corrupted. 02493_ Imp. Ion Engine fried. 02493_ Cooling System destroyed. 02493_ R-06 Scavenger collects Core Shielding. 02496_ Acquired 20 matter. 02496_ R-06 Scavenger collects Corrupted Imp. Aluminum Leg. 02497_ Arm. Wheel destroyed. Map ----- +----------------------------------------------------+ | | | | | | | | | | | | | | | | | | | | | | | | | | | | | | | | | | | ?????????????????????????????????????????????????# | | ??????????????????????###########?????????????? | | ??????????????????????# #?????????????# | | ??????????????????????# """"" #?????????????# | | ??????????????????????# ""T"" #?????????????# "" | | ??????????????????????# #?????????????# "" | | ??????????????????????# #?????????????# "" | | ??????????????????????# %gg #?????????????# | | ??????????????????????# @g #?????????????# | | ?????????? ????????#s sr #?????????######## | | ????????? ????####/################ | | ????????? ### Y + ]## | | ????????? #### ## | | ????????????????######### #??# """ ## #### | | ????????????????????????# #??# """ ## ## | | ????????????????????????# #??# """ ## ## | | ????????????????????????# r r#??# ## ## | | ????????????????????????# #######+### # | | ????????????????????????# # | | ????????????????????????# % + | | ????????????????????????# # | | ????????????????????????######## ####### # | | ???????????????????????????????# #???#####+##### | | ???????????????????????????????# #???# # | | ???????????????????????????????# #???# # | | ???????????????????????????????# ##### # | | ???????????????????????????????# ? / # | | ???????????????????????????????# #???# # | | ???????????????????????????????+ #???# # | | ???????????????????????????????# #???# # | | ???????????????????????????????# #???# / | | ???????????????????????????????# #???##"T"##+### | | ??????????????????????????????? #?????"""?# #?? | +----------------------------------------------------+ Best States ------------- Heat Dissipation 50 Energy Generation 10 Energy Capacity 250 Matter Stores 300 Matter Capacity 300 Sight Range 16 Robot Scan Range 14 Terrain Scan Density 10 Armor Coverage 225 Evasion (%) 55 Item Schematics ----------------- None Robot Schematics ------------------ None Fabricated ------------ Nothing Repaired ---------- Ion Engine | 58% | -9/Materials Alien Tech Used ----------------- None Achievements -------------- None Challenges ------------ None Game ------ Seed SchematicAmuletWings Manual? 0 Play Time 00:27:13 Cumulative 94.5 hours Start 2025.07.22 @ 04:06:14 End 2025.07.22 @ 04:31:24 Sessions 1 Manual Loads 0 Difficulty Rogue Special Mode None Game No. 106 Rogue 106 Adventurer 0 Explorer 0 Win Type - Total 0 Types 0/0/0/0/0/0/0/0/0/0 Lore% 52 Gallery% 41 Achievement% 32 Wizard Run 0 Options --------- Layout 1 ASCII 0 Keyboard 0 Movement Numpad Keybinds 0 Fullscreen 2 Font 48/Smallcaps Map View 50x35 Zoom Use 0% Tactical HUD 1 Map Filters NONE Filters NONE Steam 0 RUN: e9d9076d-6ada-4304-bd30-b2a73b537688